bitfinex-derivatives/quotes_SOLF0:USTF0_20241005
["timestamp","ask_amount","ask_price","bid_price","bid_amount"]
[1728146351603,4.8423,142.48,142.44,14.2499]
[1728146352002,6.1559,142.48,142.45,4.88]
[1728146352610,10.74,142.47,142.45,4.88]
[1728146352804,2.6467,142.48,142.45,0.5242]
[1728146353198,1.3331,142.48,142.45,0.5242]
[1728146353505,1.3331,142.48,142.47,10.74]
[1728146353712,1.3331,142.48,142.46,10.74]
[1728146353894,1.3331,142.48,142.47,3.5093]
[1728146354408,1.3331,142.48,142.45,11.2642]
[1728146354912,1.3331,142.48,142.46,3.5094]
[1728146355108,1.3331,142.48,142.45,11.2642]
[1728146355609,1.3331,142.48,142.47,3.5093]
[1728146356809,1.3331,142.48,142.45,11.2642]
[1728146357112,1.3331,142.48,142.46,3.5095]
[1728146360711,15.5823,142.48,142.45,0.5242]
[1728146362918,15.5823,142.48,142.45,4.0339]
[1728146364818,3.5093,142.47,142.46,4.88]
[1728146365007,3.5093,142.47,142.46,2.7022]
[1728146365317,3.5093,142.47,142.45,4.88]
[1728146365318,14.2493,142.47,142.45,4.88]
[1728146366218,10.74,142.47,142.45,4.88]
[1728146366415,3.5095,142.46,142.45,4.88]
[1728146367116,3.5095,142.46,142.4,75.76]
[1728146367417,10.74,142.44,142.41,4.86]
[1728146367717,2.7003,142.43,142.41,4.86]
[1728146369218,2.7003,142.43,142.41,8.3706]
[1728146371321,2.7003,142.43,142.41,3.5108]
[1728146374815,2.7003,142.43,142.4,4.86]
[1728146374816,3.5106,142.42,142.4,4.86]
[1728146375014,10.74,142.41,142.4,4.86]
[1728146375811,14.2508,142.41,142.38,8.3713]
[1728146376011,10.74,142.41,142.38,8.3713]
[1728146376624,10.74,142.41,142.38,4.86]
[1728146376815,10.74,142.4,142.38,4.86]
[1728146377311,14.2512,142.4,142.38,4.86]
[1728146377518,10.74,142.4,142.38,4.86]
[1728146378023,10.74,142.4,142.37,171.58987]
[1728146378719,10.74,142.4,142.38,3.5115]
[1728146378916,10.74,142.4,142.37,171.58987]
[1728146380228,10.74,142.4,142.37,175.10147]
[1728146380526,14.251,142.4,142.37,175.10147]
[1728146380821,14.251,142.4,142.37,166.72987]
[1728146381029,14.251,142.4,142.37,171.58987]
[1728146383231,3.5113,142.39,142.37,166.72987]
[1728146383525,10.74,142.38,142.37,171.58987]
[1728146384120,14.2515,142.38,142.37,171.58987]
[1728146384315,3.5115,142.38,142.37,171.58987]
[1728146384516,4.1057,142.43,142.37,171.58987]
[1728146384719,14.2512,142.4,142.37,171.58987]
[1728146385019,10.74,142.4,142.37,171.58987]
[1728146385215,3.5114,142.39,142.37,171.58987]
[1728146385823,10.74,142.4,142.37,171.58987]
[1728146386029,14.2511,142.4,142.37,175.10157]
[1728146387223,14.2511,142.4,142.37,171.58987]
[1728146387827,3.5113,142.39,142.37,171.58987]
[1728146389736,3.5113,142.39,142.37,166.72987]
[1728146389938,14.2513,142.39,142.37,166.72987]
[1728146393124,3.5115,142.38,142.37,166.72987]
[1728146393333,10.74,142.39,142.37,166.72987]
[1728146394437,14.2515,142.39,142.37,166.72987]
[1728146397737,4.88,142.43,142.38,45.26979502]
[1728146397937,4.88,142.44,142.39,17.33324723]
[1728146398234,8.30694657,142.44,142.4,34.17749214]
[1728146398440,10.74,142.41,142.37,166.72987]
[1728146398735,8.30694657,142.44,142.37,166.72987]
[1728146398736,10.74,142.39,142.38,33.39070149]
[1728146399747,14.2514,142.39,142.38,33.39070149]
[1728146403340,3.5114,142.39,142.38,33.39070149]
[1728146403637,14.2514,142.39,142.38,33.39070149]
[1728146403838,6.87581293,142.39,142.38,33.39070149]
[1728146404847,6.87581293,142.39,142.38,16.84205077]
[1728146405048,6.87581293,142.39,142.37,166.72987]
[1728146405049,3.5115,142.38,142.37,166.72987]
[1728146405645,14.2515,142.38,142.37,166.72987]
[1728146411660,14.2515,142.38,142.37,67.97540183]
[1728146411952,19.1315,142.38,142.37,67.97540183]
[1728146412157,22.55496379,142.38,142.37,67.97540183]
[1728146413049,19.1315,142.38,142.37,45.75540183]
[1728146413249,22.72769933,142.38,142.37,45.75540183]
[1728146413853,17.84769933,142.38,142.37,45.75540183]
[1728146414052,14.2529,142.33,142.31,0.12502]
[1728146414253,10.74,142.32,142.31,0.12502]
[1728146414753,14.253,142.32,142.31,0.12502]
[1728146416554,10.74,142.32,142.27,4.88]
[1728146416756,3.514,142.28,142.27,4.88]
[1728146416954,10.74,142.29,142.25,5.00502]
[1728146417149,3.5141,142.28,142.25,0.12502]
[1728146417356,10.74,142.29,142.25,5.00502]
[1728146417550,10.74,142.29,142.25,8.51952]
[1728146418161,10.74,142.29,142.25,5.00502]
[1728146418554,3.514,142.28,142.25,5.00502]
[1728146418951,10.74,142.27,142.25,0.12502]
[1728146419252,14.2544,142.27,142.25,0.12502]
[1728146421364,10.74,142.27,142.25,0.12502]
[1728146421567,3.5145,142.26,142.25,0.12502]
[1728146423655,10.74,142.27,142.25,0.12502]
[1728146423858,14.2543,142.27,142.25,0.12502]
[1728146424953,14.2545,142.26,142.25,0.12502]
[1728146426068,3.5137,142.29,142.26,3.5144]
[1728146426364,10.74,142.3,142.25,10.86502]
[1728146426554,10.74,142.3,142.26,4.88]
[1728146426752,10.74,142.3,142.27,3.514]
[1728146427068,10.74,142.3,142.26,4.88]
[1728146427267,10.74,142.29,142.26,4.88]
[1728146427669,14.2539,142.29,142.26,4.88]
[1728146428268,14.2536,142.3,142.27,3.5141]
[1728146430366,1.49662,142.37,142.26,15.62]
[1728146430571,4.92,142.36,142.27,2.7739]
[1728146430760,10.74,142.3,142.27,2.7739]
[1728146430962,10.74,142.3,142.27,6.2881]
[1728146431866,10.74,142.3,142.28,3.5139]
[1728146432669,10.74,142.31,142.28,3.5139]
[1728146433764,14.2532,142.31,142.28,3.5139]
[1728146433965,10.74,142.3,142.27,6.2881]
[1728146434165,14.2537,142.3,142.27,2.7739]
[1728146435172,14.2537,142.3,142.27,6.2881]
[1728146436674,14.2537,142.3,142.27,11.2081]
[1728146441372,14.2537,142.3,142.27,6.2881]
[1728146441566,10.74,142.28,142.27,4.92]
[1728146441779,10.74,142.28,142.25,5.04502]
[1728146442374,14.2538,142.29,142.26,3.5144]
[1728146445182,3.5142,142.27,142.25,5.04502]
[1728146445683,10.74,142.28,142.25,5.04502]
[1728146446383,3.5142,142.27,142.25,5.04502]
[1728146452684,10.74,142.28,142.25,8.55952]
[1728146452884,10.74,142.28,142.25,5.04502]
[1728146453391,10.74,142.28,142.26,3.5144]
[1728146456088,14.2535,142.3,142.27,3.5142]
[1728146456480,10.74,142.3,142.25,5.04502]
[1728146458084,10.74,142.28,142.26,3.5144]
[1728146459283,14.2541,142.28,142.25,8.55972]
[1728146461791,10.74,142.28,142.25,8.55972]
[1728146462798,14.254,142.28,142.25,8.55972]
[1728146463679,10.74,142.28,142.26,3.5144]
[1728146466294,14.254,142.28,142.25,8.55962]
[1728146467091,14.2541,142.28,142.25,5.04502]
[1728146467599,10.74,142.28,142.25,5.04502]
[1728146468592,14.254,142.28,142.25,8.55952]
[1728146468994,14.254,142.28,142.25,3.63952]
[1728146469194,14.254,142.28,142.25,8.53952]
[1728146469501,1.3997,142.32,142.27,3.5142]
[1728146469694,1.3997,142.32,142.25,15.76502]
[1728146469695,10.74,142.31,142.25,15.76502]
[1728146469898,1.3997,142.32,142.25,15.76502]
[1728146470099,10.74,142.31,142.25,15.76502]
[1728146470299,14.2534,142.31,142.25,15.76502]
[1728146470696,14.2534,142.31,142.28,3.5139]
[1728146470897,14.2534,142.31,142.28,8.4139]
[1728146471208,3.5135,142.3,142.28,4.9]
[1728146471805,14.2533,142.31,142.28,4.9]
[1728146472426,10.74,142.31,142.29,3.5137]
[1728146473420,4.9128,142.32,142.3,3.5135]
[1728146473421,10.74,142.32,142.3,3.5135]
[1728146479828,10.74,142.32,142.28,4.9]
[1728146480022,14.253,142.32,142.29,3.5137]
[1728146482227,10.74,142.32,142.28,4.9]
[1728146482434,3.5133,142.31,142.28,8.4139]
[1728146483731,1.4222,142.36,142.27,4.9]
[1728146483732,14.2539,142.29,142.27,4.9]
[1728146484422,3.514,142.28,142.27,4.9]
[1728146485526,14.254,142.28,142.27,4.9]
[1728146486231,3.5132,142.32,142.28,3.5137]
[1728146486423,10.74,142.31,142.28,3.5137]
[1728146486623,10.74,142.31,142.27,4.9]
[1728146486823,14.2534,142.31,142.27,8.4141]
[1728146492232,14.2534,142.31,142.27,4.9]
[1728146492424,10.74,142.31,142.28,3.5138]
[1728146493135,14.2533,142.31,142.28,3.5138]
[1728146494439,10.74,142.3,142.28,3.5138]
[1728146495141,14.2533,142.31,142.28,3.5138]
[1728146495345,3.5133,142.31,142.28,3.5138]
[1728146495640,14.2533,142.31,142.28,3.5138]
[1728146496742,14.2533,142.31,142.27,4.9]
[1728146496743,14.2533,142.31,142.27,1.3888]
[1728146497936,14.2533,142.31,142.28,3.5138]
[1728146498532,3.5133,142.31,142.28,3.5138]
[1728146498731,14.2533,142.31,142.28,3.5138]
[1728146499840,10.74,142.31,142.27,1.3888]
[1728146500041,3.5135,142.3,142.27,4.9029]
[1728146500239,3.5135,142.3,142.27,1.3888]
[1728146500441,3.5135,142.3,142.27,4.903]
[1728146500636,10.74,142.31,142.27,4.903]
[1728146500637,10.74,142.31,142.27,1.3888]
[1728146501445,10.74,142.29,142.27,1.3888]
[1728146501739,10.74,142.28,142.25,5.06502]
[1728146502248,14.2541,142.28,142.25,5.06502]
[1728146503243,3.5142,142.27,142.25,5.06502]
[1728146507652,14.2539,142.29,142.25,8.57962]
[1728146507842,10.74,142.29,142.25,8.57962]
[1728146508246,3.514,142.28,142.25,8.57962]
[1728146515761,3.514,142.28,142.26,3.5145]
[1728146516555,14.2538,142.29,142.26,3.5145]
[1728146521860,10.74,142.3,142.27,3.514]
[1728146522057,10.74,142.3,142.25,15.80502]
[1728146523061,10.74,142.3,142.27,3.5141]
[1728146523860,14.2535,142.3,142.27,3.5141]
[1728146524255,6.3222,142.36,142.3,3.5134]
[1728146524567,3.5129,142.33,142.3,3.5134]
[1728146524956,6.3222,142.36,142.28,4.9]
[1728146524957,10.74,142.31,142.28,4.9]
[1728146526058,14.2532,142.31,142.28,8.4138]
[1728146528172,10.74,142.31,142.28,8.4138]
[1728146528573,10.74,142.31,142.28,4.9]
[1728146530066,3.5137,142.29,142.28,4.9]
[1728146530268,3.5137,142.29,142.27,4.9]
[1728146536976,14.2537,142.29,142.27,4.9]
[1728146537174,3.514,142.28,142.27,4.9]
[1728146540873,10.74,142.29,142.27,4.9]
[1728146541186,14.2538,142.29,142.27,4.9]
[1728146541683,3.5138,142.29,142.27,4.9]
[1728146542178,14.2538,142.29,142.27,4.9]
[1728146546384,1.4315,142.3,142.27,4.9]
[1728146546680,10.74,142.32,142.27,4.9]
[1728146547480,3.5132,142.31,142.28,3.5138]
[1728146550385,3.5132,142.31,142.27,4.9]
[1728146550578,3.5135,142.3,142.27,8.4141]
[1728146551791,3.5134,142.31,142.27,8.4141]
[1728146551982,3.5134,142.31,142.28,3.5139]
[1728146552888,10.74,142.32,142.28,3.5139]
[1728146553184,14.2532,142.32,142.28,3.5139]
[1728146553389,10.74,142.32,142.28,3.5139]
[1728146553590,3.5133,142.31,142.28,3.5139]
[1728146553988,3.5133,142.31,142.27,8.4141]
[1728146554197,10.74,142.29,142.25,0.12502]
[1728146554489,3.5141,142.28,142.25,0.12502]
[1728146556202,3.5141,142.28,142.25,3.63972]
[1728146556493,3.5138,142.29,142.26,3.5143]
[1728146556696,12.0855,142.31,142.26,14.2543]
[1728146557096,3.5136,142.3,142.26,14.2543]
[1728146559985,3.5136,142.3,142.27,3.5142]
[1728146562394,3.5139,142.29,142.25,8.49952]
[1728146562599,10.74,142.3,142.25,8.49952]
[1728146563094,10.74,142.3,142.25,4.98502]
[1728146563595,3.5141,142.28,142.25,4.98502]
[1728146567501,3.5141,142.28,142.25,8.49972]
[1728146568395,1.3455,142.31,142.25,4.98502]
[1728146568396,10.74,142.29,142.25,4.98502]
[1728146568601,1.3455,142.31,142.25,4.98502]
[1728146568805,10.74,142.29,142.25,4.98502]
[1728146569006,14.2539,142.29,142.25,8.49962]
[1728146569606,3.5141,142.28,142.25,8.49972]
[1728146576813,3.5133,142.31,142.28,3.5139]
[1728146577015,14.2533,142.31,142.28,4.86]
[1728146577210,82.35062795,142.34,142.28,4.86]
[1728146577517,10.74,142.32,142.28,4.86]
[1728146577817,14.2531,142.32,142.28,8.3738]
[1728146581927,14.2535,142.3,142.28,4.86]
[1728146582116,10.74,142.29,142.28,4.86]
[1728146584617,10.74,142.29,142.26,4.88]
[1728146585314,14.2538,142.29,142.26,8.3943]
[1728146588328,14.2538,142.29,142.26,4.88]
[1728146588522,10.74,142.29,142.26,4.88]
[1728146588723,3.5142,142.27,142.26,4.88]
[1728146589128,3.5142,142.27,142.25,0.12502]
[1728146592331,3.5141,142.28,142.25,3.63952]
[1728146592524,1.3426,142.29,142.25,0.12502]
[1728146592730,10.74,142.32,142.26,10.74]
[1728146592932,10.74,142.32,142.27,4.88]
[1728146594033,14.2532,142.32,142.29,3.5137]
[1728146595836,14.2532,142.32,142.28,3.5138]
[1728146596038,14.2532,142.32,142.27,4.88]
[1728146597037,14.2532,142.32,142.29,3.5137]
[1728146598545,10.74,142.32,142.29,3.5137]
[1728146598730,7.0203,142.44,142.31,10.74]
[1728146598936,7.0203,142.44,142.27,1.3845]
[1728146598937,5.01378336,142.36,142.33,10.74]
[1728146599134,10.86502,142.37,142.35,3.5122]
[1728146599735,0.12502,142.37,142.34,4.88]
[1728146599937,0.12502,142.37,142.36,3.512]
[1728146600134,0.12502,142.37,142.34,15.62]
[1728146602041,0.12502,142.37,142.35,3.5121]
[1728146602746,0.12502,142.37,142.36,3.512]
[1728146606139,10.74,142.4,142.34,4.88]
[1728146606351,3.5111,142.4,142.36,14.2518]
[1728146606648,3.5111,142.4,142.37,4.88]
[1728146608048,3.5111,142.4,142.37,8.3917]
[1728146608245,10.74,142.42,142.37,15.62]
[1728146608954,3.5109,142.41,142.37,19.1316]
[1728146609343,10.74,142.41,142.35,1.3919]
[1728146609556,3.5113,142.39,142.36,4.88]
[1728146609947,10.74,142.4,142.36,4.88]
[1728146610347,14.2511,142.4,142.36,8.3918]
[1728146611450,3.5111,142.4,142.36,4.88]
[1728146611652,14.2511,142.4,142.36,19.1319]
[1728146612858,14.2511,142.4,142.36,15.62]
[1728146613047,3.5111,142.4,142.37,3.5117]
[1728146614856,3.5109,142.41,142.37,3.5117]
[1728146615042,14.2509,142.41,142.36,15.62]
[1728146615247,14.2509,142.41,142.37,3.5117]
[1728146615457,3.511,142.4,142.37,3.5117]
[1728146616360,3.511,142.4,142.36,8.3918]
[1728146618262,14.251,142.4,142.37,3.5117]
[1728146618961,14.251,142.4,142.35,12.1319]
[1728146619159,3.5117,142.38,142.35,3.5122]
[1728146619365,10.74,142.4,142.36,4.88]
[1728146619953,14.2512,142.4,142.36,8.3919]
[1728146620549,3.5112,142.4,142.36,8.3919]
[1728146622763,3.5112,142.4,142.36,19.1319]
[1728146624663,3.5112,142.4,142.36,14.2519]
[1728146624864,3.5113,142.39,142.37,4.88]
[1728146627669,3.5113,142.39,142.38,4.88]
[1728146628270,10.74,142.41,142.38,4.88]
[1728146628469,3.5112,142.4,142.38,4.88]
[1728146629259,0.12502,142.43,142.38,4.88]
[1728146629776,10.86502,142.43,142.38,8.3914]
[1728146630569,3.5109,142.41,142.38,8.3914]
[1728146630764,10.86502,142.43,142.38,4.88]
[1728146631068,3.5108,142.41,142.38,4.88]
[1728146631864,3.5108,142.41,142.38,8.3914]
[1728146632060,3.5108,142.41,142.34,1.4215]
[1728146632061,10.74,142.42,142.34,1.4215]
[1728146632264,10.74,142.42,142.36,10.74]
[1728146633579,3.5112,142.4,142.37,3.5117]
[1728146633780,3.5112,142.4,142.38,4.88]
[1728146649687,0.12502,142.43,142.38,4.88]
[1728146649995,3.5106,142.42,142.39,3.5111]
[1728146650196,3.5106,142.42,142.38,15.62]
[1728146650197,0.12502,142.43,142.4,10.74]
[1728146650392,0.12502,142.43,142.41,4.86]
[1728146650893,0.12502,142.43,142.41,19.1106]
[1728146651590,1.3735,142.48,142.42,14.2505]
[1728146651798,12.1135,142.48,142.42,14.2505]
[1728146652497,3.5096,142.46,142.42,14.2505]
[1728146652694,3.5096,142.46,142.42,3.5105]
[1728146653790,1.3735,142.48,142.43,10.74]
[1728146653993,1.3735,142.48,142.44,4.86]
[1728146654701,4.8827,142.48,142.44,8.3699]
[1728146655089,0.12502,142.49,142.44,15.6]
[1728146655289,10.86502,142.49,142.45,3.5097]
[1728146655699,10.86502,142.49,142.39,1.3433]
[1728146655700,3.5093,142.47,142.46,4.86]
[1728146656790,3.5093,142.47,142.43,3.5101]
[1728146656995,10.86502,142.49,142.4,1.3238]
[1728146656996,10.74,142.46,142.44,4.86]
[1728146657388,10.74,142.45,142.44,1.3499]
[1728146658388,14.2499,142.45,142.41,14.2507]
[1728146658598,14.2499,142.45,142.43,4.86]
[1728146659200,10.74,142.45,142.4,1.3238]
[1728146659401,10.74,142.44,142.41,4.86]
[1728146659789,3.5107,142.42,142.4,1.3238]
[1728146659990,10.74,142.43,142.4,4.86]
[1728146660191,10.74,142.41,142.4,4.86]
[1728146660704,14.251,142.41,142.4,4.86]
[1728146663099,3.511,142.4,142.37,3.63662]
[1728146663407,3.511,142.4,142.39,4.86]
[1728146663607,10.74,142.41,142.39,4.86]
[1728146663801,14.2509,142.41,142.39,4.86]
[1728146666109,10.74,142.41,142.39,4.86]
[1728146666409,3.511,142.4,142.39,4.86]
[1728146669905,3.5114,142.39,142.37,0.12502]
[1728146670105,10.74,142.4,142.38,4.86]
[1728146670910,3.5113,142.39,142.38,4.86]
[1728146678604,3.5115,142.38,142.37,4.98502]
[1728146678808,3.5115,142.38,142.37,0.12502]
[1728146684519,14.2515,142.38,142.37,0.12502]
[1728146684819,15.6986,142.38,142.37,0.12502]
[1728146685020,4.9586,142.38,142.37,0.12502]
[1728146685227,15.6986,142.38,142.37,0.12502]
[1728146709644,3.51264044,142.37,142.32,4.86]
[1728146709836,10.74,142.34,142.32,4.86]
[1728146710035,3.5126,142.34,142.32,4.86]
[1728146711635,3.5119,142.37,142.32,4.86]
[1728146711943,10.74,142.36,142.32,4.86]
[1728146712335,14.2518,142.37,142.33,3.5126]
[1728146715247,3.512,142.36,142.32,15.6]
[1728146715536,3.512,142.36,142.32,19.1129]
[1728146717243,82.32068636,142.39,142.34,10.74]
[1728146717543,93.06068636,142.39,142.35,4.86]
[1728146718251,3.5117,142.38,142.35,4.86]
[1728146720748,82.32068636,142.39,142.36,10.74]
[1728146720935,225.0,142.54,142.38,10.74]
[1728146720936,1.4256,142.48,142.38,10.74]
[1728146721136,10.74,142.44,142.39,15.6]
[1728146721343,2.8173,142.48,142.39,15.6]
[1728146721551,10.74,142.45,142.39,15.6]
[1728146721752,14.2499,142.45,142.4,4.8825]
[1728146724553,3.5105,142.42,142.41,4.86]
[1728146724762,10.74,142.44,142.41,4.86]
[1728146725055,3.63542,142.43,142.41,4.86]
[1728146731155,0.12502,142.43,142.41,4.86]
[1728146732056,0.12502,142.43,142.41,19.1108]
[1728146735153,10.86502,142.43,142.4,6.3195]
[1728146735651,0.12502,142.43,142.4,17.0595]
[1728146737049,0.12502,142.43,142.41,3.5107]
[1728146739261,0.12502,142.43,142.4,1.4395]
[1728146739446,0.12502,142.43,142.41,15.62]
[1728146742661,3.63532,142.43,142.41,4.88]
[1728146743858,3.63532,142.43,142.4,12.1795]
[1728146744053,3.63532,142.43,142.41,4.88]
[1728146744558,0.12502,142.43,142.41,15.62]
[1728146747654,3.5105,142.42,142.41,4.88]
[1728146751870,10.86502,142.43,142.38,3.5114]
[1728146752076,3.5108,142.41,142.39,4.88]
[1728146759768,10.74,142.42,142.35,1.3824]
[1728146760073,3.5117,142.38,142.36,15.6]
[1728146760772,10.74,142.41,142.35,1.3824]
[1728146760961,3.5118,142.37,142.36,4.86]
[1728146762375,3.5118,142.37,142.34,14.2524]
[1728146762675,3.5118,142.37,142.35,4.86]
[1728146765279,3.5118,142.37,142.36,4.86]
[1728146767167,10.74,142.4,142.36,4.86]
[1728146767373,3.5116,142.38,142.36,4.86]
[1728146770875,3.5109,142.41,142.37,10.74]
[1728146771075,1.52012,142.43,142.39,10.74]
[1728146771380,1.52012,142.43,142.39,15.6]
[1728146771768,3.5107,142.42,142.39,15.6]
[1728146772787,3.5108,142.41,142.39,4.86]
[1728146774884,14.2507,142.42,142.39,4.86]
[1728146775875,14.2507,142.42,142.37,10.74]
[1728146775876,3.5116,142.38,142.36,4.86]
[1728146776378,10.74,142.4,142.36,4.86]
[1728146776876,3.5114,142.39,142.36,4.86]
[1728146778085,3.5115,142.38,142.36,4.86]
[1728146779281,10.74,142.41,142.36,19.112]
[1728146780385,3.5112,142.4,142.36,19.112]
[1728146781887,3.5112,142.4,142.36,14.252]
[1728146782078,3.5113,142.39,142.37,4.86]
[1728146782681,3.5113,142.39,142.36,10.74]
[1728146782879,3.5113,142.39,142.37,4.86]
[1728146783684,1.52012,142.43,142.37,4.86]
[1728146783884,3.5112,142.4,142.37,4.86]
[1728146785284,1.52012,142.43,142.37,4.86]
[1728146785474,0.12502,142.43,142.37,4.86]
[1728146785679,0.12502,142.43,142.42,10.74]
[1728146785883,0.12502,142.43,142.42,19.1105]
[1728146788492,0.12502,142.43,142.38,1.4075]
[1728146788684,10.74,142.42,142.39,4.86]
[1728146788890,10.74,142.4,142.26,19.76014338]
[1728146789090,3.5123,142.35,142.34,4.86]
[1728146789313,10.74,142.38,142.34,4.86]
[1728146789898,3.5119,142.37,142.34,4.86]
[1728146790193,10.74,142.37,142.35,4.92]
[1728146790695,10.74,142.38,142.35,4.92]
[1728146791287,14.2517,142.38,142.35,4.92]
[1728146795099,3.5117,142.38,142.35,4.92]
[1728146796991,3.5119,142.37,142.35,4.92]
[1728146797194,10.74,142.37,142.33,75.8]
[1728146797404,10.74,142.37,142.34,4.92]
[1728146797590,3.512,142.36,142.34,4.92]
[1728146798901,10.74,142.36,142.31,0.12502]
[1728146799105,10.74,142.35,142.32,1.407]
[1728146799804,10.74,142.33,142.31,5.04502]
[1728146800200,3.5129,142.33,142.31,5.04502]
[1728146803294,2.7983,142.36,142.31,5.04502]
[1728146803501,13.5383,142.36,142.31,5.04502]
[1728146804109,3.5126,142.34,142.31,5.04502]
[1728146804496,13.5383,142.36,142.31,5.04502]
[1728146804926,3.5123,142.35,142.31,5.04502]
[1728146810818,3.5125,142.34,142.31,5.04502]
[1728146817018,3.513,142.32,142.31,0.12502]
[1728146817325,10.74,142.34,142.31,0.12502]
[1728146817724,3.5129,142.33,142.31,0.12502]
[1728146821925,13.5383,142.36,142.31,0.12502]
[1728146823126,3.5129,142.33,142.31,0.12502]
[1728146824820,3.5123,142.35,142.32,10.74]
[1728146825122,1.4517,142.36,142.34,10.74]
[1728146825818,4.9639,142.36,142.34,10.74]
[1728146826624,3.5118,142.37,142.34,10.74]
[1728146827630,82.3282612,142.39,142.34,10.74]
[1728146827833,1.421,142.4,142.36,10.74]
[1728146828126,0.12502,142.43,142.39,10.74]
[1728146828327,0.12502,142.43,142.41,10.74]
[1728146829031,0.12502,142.43,142.42,4.88]
[1728146832118,3.5109,142.41,142.36,3.5119]
[1728146832332,3.5109,142.41,142.37,4.88]
[1728146834518,3.5109,142.41,142.38,10.74]
[1728146835036,3.5105,142.42,142.38,14.2513]
[1728146835234,0.12502,142.43,142.4,10.74]
[1728146835436,0.12502,142.43,142.4,15.62]
[1728146836735,3.63532,142.43,142.4,15.62]
[1728146841626,0.12502,142.43,142.41,10.74]
[1728146841826,0.12502,142.43,142.42,10.74]
[1728146842430,0.12502,142.43,142.42,14.2505]
[1728146842736,10.74,142.48,142.42,10.74]
[1728146842929,10.74,142.48,142.44,10.74]
[1728146843331,3.5091,142.48,142.44,10.74]
[1728146843733,10.86502,142.49,142.44,10.74]
[1728146843938,3.5094,142.47,142.44,10.74]
[1728146847030,3.5099,142.45,142.43,4.88]
[1728146849343,3.5099,142.45,142.43,15.62]
[1728146849641,10.74,142.48,142.43,15.62]
[1728146849944,10.74,142.48,142.44,10.74]
[1728146850330,3.5095,142.47,142.44,10.74]
[1728146850730,10.74,142.48,142.44,10.74]
[1728146850937,3.5095,142.47,142.43,4.88]
[1728146851142,3.5095,142.47,142.43,15.62]
[1728146851748,10.74,142.48,142.43,15.62]
[1728146851939,3.5096,142.46,142.43,15.62]
[1728146852741,10.74,142.48,142.43,19.1301]
[1728146853448,3.5095,142.47,142.43,19.1301]
[1728146853849,3.5095,142.47,142.43,15.62]
[1728146854141,3.5095,142.47,142.44,10.74]
[1728146854347,10.74,142.48,142.44,10.74]
[1728146854549,3.5095,142.46,142.44,10.74]
[1728146855748,3.5095,142.46,142.42,3.5104]
[1728146855957,10.74,142.46,142.41,10.74]
[1728146856148,10.74,142.46,142.42,4.92]
[1728146857049,3.5102,142.44,142.42,4.92]
[1728146859958,3.5103,142.43,142.42,4.92]
[1728146862947,3.5103,142.43,142.42,15.66]